fUSD/lending_fUSD_20251001
["ID","MTS","AMOUNT","RATE_DAILY","PERIOD"]
[388708841,1759327843384,-820.1,0.00016988,2]
[388708843,1759327843394,-1685.77,0.00016988,2]
[388708845,1759327843402,-150.0,0.00016989,2]
[388708847,1759327843412,-150.0,0.00016989,2]
[388708849,1759327843422,-150.0,0.00016989,2]
[388708851,1759327843433,-150.0,0.00016989,2]
[388708852,1759327843444,-150.0,0.00016989,2]
[388708854,1759327843453,-150.0,0.00016989,2]
[388708856,1759327843463,-151.0,0.0001699,2]
[388708858,1759327843472,-151.0,0.0001699,2]
[388708860,1759327843482,-151.0,0.0001699,2]
[388708862,1759327843491,-297.10847124,0.0001699,2]
[388708863,1759327843501,-155.03730252,0.0001699,2]
[388708865,1759327843509,-200.0,0.0001699,2]
[388708867,1759327843519,-200.0,0.0001699,2]
[388708869,1759327843528,-500.0,0.0001699,2]
[388708871,1759327843539,-500.0,0.0001699,2]
[388708873,1759327843548,-500.0,0.0001699,2]
[388708874,1759327843558,-500.0,0.0001699,2]
[388708876,1759327843567,-500.0,0.0001699,2]
[388708878,1759327843577,-151.0,0.0001699,2]
[388708880,1759327843586,-500.0,0.0001699,2]
[388708881,1759327843595,-151.0,0.0001699,2]
[388708883,1759327843603,-500.0,0.0001699,2]
[388708885,1759327843613,-151.0,0.0001699,2]
[388708887,1759327843622,-151.0,0.0001699,2]
[388708889,1759327843633,-500.0,0.0001699,2]
[388708891,1759327843642,-500.0,0.0001699,2]
[388708893,1759327843651,-151.0,0.0001699,2]
[388708894,1759327843661,-151.0,0.0001699,2]
[388708896,1759327843670,-500.0,0.0001699,2]
[388708898,1759327843681,-151.0,0.0001699,2]
[388708900,1759327843690,-500.0,0.0001699,2]
[388708902,1759327843699,-151.0,0.0001699,2]
[388708904,1759327843709,-500.0,0.0001699,2]
[388708906,1759327843718,-500.0,0.0001699,2]
[388708908,1759327843728,-151.0,0.0001699,2]
[388708910,1759327843737,-151.0,0.0001699,2]
[388708912,1759327843747,-151.0,0.0001699,2]
[388708914,1759327843758,-151.0,0.0001699,2]
[388708916,1759327843770,-151.0,0.0001699,2]
[388708918,1759327843779,-151.0,0.0001699,2]
[388708920,1759327843788,-151.0,0.0001699,2]
[388708922,1759327843799,-151.0,0.0001699,2]
[388708924,1759327843808,-151.0,0.0001699,2]
[388708926,1759327843818,-151.0,0.0001699,2]
[388708928,1759327843828,-151.0,0.0001699,2]
[388708930,1759327843838,-158.47002248,0.0001699,2]
[388708932,1759327843848,-150.0,0.0001699,2]
[388708934,1759327843858,-150.0,0.0001699,2]
[388708936,1759327843867,-150.0,0.0001699,2]
[388708938,1759327843876,-150.0,0.0001699,2]
[388708940,1759327843885,-7128.5605772,0.00016995,2]
[388708942,1759327843895,-300.0,0.00016999,2]
[388708944,1759327843904,-666.0,0.00016999,2]
[388708946,1759327843913,-72518.48109025,0.00017,2]
[388708948,1759327843925,-162070.13131254,0.00017,2]
[388708951,1759327843939,-1380.52,0.00017,2]
[388708953,1759327843951,-9377.69,0.00017,2]
[388709114,1759327845684,-2989.85,0.00017,2]
[388709116,1759327845698,-458.05243016,0.00017,2]
[388709119,1759327845709,-4200.38739999,0.00017,2]
[388709121,1759327845726,-5764.11210548,0.00017,2]
[388709124,1759327845737,-3303.50381037,0.00017,2]
[388709126,1759327845749,-21521.5,0.00017,2]
[388709129,1759327845778,-28509.34074895,0.00017,2]
[388709132,1759327845799,-148118.03384522,0.00017,2]
[388710809,1759327911957,357.86,8.304e-05,2]
[388710810,1759327912387,357.86,8.741e-05,2]
[388710811,1759327912810,357.86,9.178e-05,2]
[388710812,1759327914333,357.86,9.615e-05,2]
[388710813,1759327914420,357.86,0.00010052,2]
[388710814,1759327914500,357.86,0.00010489,2]
[388710815,1759327914615,357.86,0.00010926,2]
[388710816,1759327914725,227.11250278,0.00011363,2]
[388710817,1759327914754,130.74749722,0.00011363,2]
[388710818,1759327914863,357.86,0.000118,2]
[388710819,1759327914944,357.86,0.00012237,2]
[388710820,1759327915029,357.86,0.00012674,2]
[388710821,1759327915118,357.86,0.00013111,2]
[388710822,1759327915235,357.86,0.00013548,2]
[388710823,1759327915317,357.86,0.00013985,2]
[388710824,1759327915452,357.86,0.00014422,2]
[388710825,1759327915674,357.86,0.00014859,2]
[388710826,1759327915901,357.86,0.00015296,2]
[388710827,1759327916117,357.86,0.00015733,2]
[388710828,1759327916344,357.86,0.0001617,2]
[388710829,1759327919007,445.9,0.00016211,2]
[388710833,1759328057476,641.49,0.00016101,2]
[388710835,1759328093312,150.0,0.000166,2]
[388710836,1759328113474,150.0,0.000154,2]
[388710837,1759328113912,150.0,0.0001658,2]
[388710838,1759328140240,165.63,0.00016053,2]
[388710851,1759328208697,1322.65,0.00016189,2]
[388710852,1759328220938,163.92,0.00016061,2]
[388710857,1759328244624,54336.44,0.00016102,2]
[388710866,1759328303207,1098.2,0.00016088,2]
[388710870,1759328393121,250.0,0.00016089,2]
[388710871,1759328415649,1000.0,0.00016438,2]
[388710875,1759328443636,203.64,0.0001656,2]
[388710876,1759328477203,842.98,0.00030136,120]
[388710880,1759328523205,666.0,0.00016064,3]
[388710882,1759328533606,200.0,0.000301,120]
[388710884,1759328643577,150.0,0.000144,2]
[388710885,1759328644285,150.0,0.0001558,2]
[388710888,1759328721356,178.17,0.00016037,2]
[388710889,1759328725841,255.47545688,0.00015288,2]
[388710890,1759328725904,150.0,0.00015288,2]
[388710892,1759328730551,254.11289035,0.00015288,2]
[388710894,1759328735882,150.41000677,0.00015288,2]
[388710895,1759328737044,150.0,0.00015288,2]
[388710896,1759328738047,150.0,0.00015288,2]
[388710902,1759328827358,1512.37846894,0.00015,2]
[388710919,1759329002006,807.85,0.00030136,120]
[388710921,1759329004564,222.95,0.00016029,2]
[388710939,1759329031796,-357.86,0.00016608,2]
[388710940,1759329031806,-2000.0,0.00016648,2]
[388710941,1759329031815,-250.0,0.00016689,2]
[388710942,1759329031825,-1000.0,0.000167,2]
[388710943,1759329031835,-1000.0,0.000167,2]
[388710944,1759329031844,-1291.74000477,0.000167,2]
[388710945,1759329031856,-553.08819633,0.000167,2]
[388710946,1759329031916,-3802.26259945,0.000167,2]
[388710947,1759329031935,-400.0,0.000167,2]
[388710948,1759329031947,-8644.51153997,0.000167,2]
[388710949,1759329032085,-107792.07247222,0.000167,2]
[388710951,1759329032096,-32528.06969411,0.000167,2]
[388710952,1759329032107,-690.4702841,0.000167,2]
[388710953,1759329032125,-1241.5243519,0.000167,2]
[388710954,1759329032134,-110.49061246,0.00016719,2]
[388710955,1759329032146,-289.50938754,0.00016719,2]
[388710956,1759329032157,-150.0,0.0001677,2]
[388710957,1759329032167,-151.84773,0.0001683,2]
[388710958,1759329032176,-178.17,0.00016839,2]
[388710959,1759329032186,-200.0,0.00016864,2]
[388710960,1759329032196,-467.27823822,0.00016876,2]
[388710961,1759329032206,-250.33591844,0.00016878,2]
[388710962,1759329032216,-705.0,0.00016889,2]
[388710963,1759329032226,-8882.6885148,0.0001689,2]
[388710964,1759329032236,-635.59551896,0.000169,2]
[388710965,1759329032245,-196.98446466,0.000169,2]
[388710966,1759329032255,-271.16315475,0.000169,2]
[388710968,1759329032264,-152.70831464,0.000169,2]
[388710970,1759329032274,-474.30464112,0.000169,2]
[388710972,1759329032283,-631.30981893,0.000169,2]
[388710975,1759329032296,-617.89657057,0.000169,2]
[388710979,1759329032305,-2791.60342943,0.000169,2]
[388710991,1759329032338,-316.05104,0.000169,2]
[388710996,1759329032349,-1662.82451152,0.000169,2]
[388711000,1759329032359,-564.13304519,0.000169,2]
[388711004,1759329032371,-12025.36674474,0.000169,2]
[388711008,1759329032383,-1450.0,0.000169,2]
[388711067,1759329037748,-4311.59999998,0.000169,2]
[388711068,1759329037922,-2872.55077103,0.000169,2]
[388711069,1759329037932,-153.3793864,0.000169,2]
[388711070,1759329037942,-9211.34798985,0.00016945,2]
[388711071,1759329037954,-151.84773,0.0001695,2]
[388711072,1759329037964,-500.0,0.00016973,2]
[388711073,1759329037974,-490.71749362,0.00016973,2]
[388711074,1759329037984,-500.0,0.00016973,2]
[388711075,1759329037994,-458.10638001,0.00016973,2]
[388711076,1759329038004,-500.0,0.00016973,2]
[388711077,1759329038014,-500.0,0.00016973,2]
[388711078,1759329038024,-500.0,0.00016973,2]
[388711079,1759329038034,-500.0,0.00016973,2]
[388711080,1759329038044,-500.0,0.00016973,2]
[388711081,1759329038053,-202.04263158,0.0001699,2]
[388711082,1759329038063,-151.0,0.0001699,2]
[388711083,1759329038072,-500.0,0.0001699,2]
[388711084,1759329038085,-500.0,0.0001699,2]
[388711085,1759329038095,-500.0,0.0001699,2]
[388711087,1759329038105,-500.0,0.0001699,2]
[388711089,1759329038115,-500.0,0.0001699,2]
[388711092,1759329038126,-500.0,0.0001699,2]
[388711094,1759329038136,-500.0,0.0001699,2]
[388711096,1759329038146,-500.0,0.0001699,2]
[388711098,1759329038157,-500.0,0.0001699,2]
[388711100,1759329038167,-500.0,0.0001699,2]
[388711102,1759329038177,-247.44406778,0.0001699,2]
[388711105,1759329038191,-746.435,0.0001699,2]
[388711106,1759329038201,-30262.20286037,0.00016999,2]
[388711109,1759329038214,-16104.0,0.00016999,2]
[388711111,1759329038227,-10290.0,0.00016999,2]
[388711113,1759329038238,-20939.37353891,0.00016999,2]
[388711115,1759329038249,-500.0,0.00016999,2]
[388711127,1759329038359,-500.0,0.00016999,2]
[388711129,1759329038370,-597.98844352,0.00016999,2]
[388711131,1759329038379,-17712.92387757,0.00017,2]
[388711133,1759329038391,-14818.65479966,0.00017,2]
[388711166,1759329039674,-4037.71906404,0.00017,2]
[388711167,1759329039685,-9552.16786547,0.00017,2]
[388711168,1759329039694,-432367.30965038,0.00017,2]
[388711169,1759329039787,-131206.09646525,0.00017,2]
[388711170,1759329039797,-500.0,0.00017,2]
[388711171,1759329039806,-500.0,0.00017,2]
[388711172,1759329039815,-500.0,0.00017,2]
[388711173,1759329039825,-900.0,0.00017,2]
[388711174,1759329039834,-500.0,0.00017,2]
[388711175,1759329039844,-83477.25676933,0.00017,2]
[388711176,1759329039964,-1173.2,0.00017,2]
[388711181,1759329040024,-261.78813909,0.00017,2]
[388711183,1759329040037,-3234.80000003,0.00017,2]
[388711304,1759329042965,-880.398859,0.00017,2]
[388711394,1759329045847,-39836.82237184,0.00017,2]
[388711395,1759329046036,-500.25000038,0.00017,2]
[388711396,1759329046048,-2140.74421574,0.00017,2]
[388711397,1759329046059,-954.87255784,0.00017,2]
[388711647,1759329138371,150.0,0.00017,120]
[388711648,1759329138589,150.0,0.00017274,120]
[388711649,1759329138815,200.30000001,0.00017548,120]
[388711654,1759329172833,150.0,0.000153,2]
[388711655,1759329173345,150.0,0.0001648,2]
[388711658,1759329215592,2000.0,0.00016,12]
[388711668,1759329454409,250.0,0.00016399,2]
[388711669,1759329511476,666.0,0.00016349,3]
[388711674,1759329626328,178.17,0.00016401,2]
[388711676,1759329682806,774.19,0.00030136,120]
[388711678,1759329704309,150.0,0.000143,2]
[388711679,1759329704747,150.0,0.0001548,2]
[388711680,1759329749986,1003.723,0.00030137,120]
[388711689,1759329865516,1000.0,0.00016438,2]
[388711693,1759329929475,224.84664909,0.00015288,2]
[388711699,1759330100159,330.0,0.00030136,120]
[388711703,1759330121670,194.05,0.00016194,2]
[388711713,1759330231275,150.0,0.000133,2]
[388711723,1759330232025,150.0,0.0001448,2]
[388711725,1759330232040,-151.84773,0.0001683,2]
[388711726,1759330232055,-500.0,0.00016849,2]
[388711727,1759330232067,-1200.0,0.00016899,2]
[388711728,1759330232078,-300.0,0.00016899,2]
[388711729,1759330232089,-216.50966452,0.000169,2]
[388711730,1759330232111,-168.15914664,0.000169,2]
[388711731,1759330232121,-6304.71409492,0.000169,2]
[388711732,1759330232131,-153.37938638,0.000169,2]
[388711733,1759330232141,-832.80425966,0.000169,2]
[388711734,1759330232151,-150.0,0.00016947,2]
[388711735,1759330232161,-151.84774,0.0001695,2]
[388711736,1759330232171,-300.56675169,0.00016973,2]
[388711737,1759330232189,-199.43324831,0.00016973,2]
[388711738,1759330232200,-500.0,0.00016973,2]
[388711739,1759330232211,-500.0,0.00016973,2]
[388711740,1759330232223,-500.0,0.00016973,2]
[388711741,1759330232233,-500.0,0.00016973,2]
[388711742,1759330232243,-500.0,0.00016973,2]
[388711743,1759330232254,-437.39973047,0.00016973,2]
[388711744,1759330232266,-155.82673237,0.00016973,2]
[388711745,1759330232277,-454.92897089,0.0001698,2]
[388711746,1759330232287,-4050.37900547,0.0001698,2]
[388711747,1759330232303,-880.37195999,0.0001698,2]
[388711748,1759330232315,-3951.93754934,0.0001698,2]
[388711749,1759330232325,-166.71940721,0.0001699,2]
[388711750,1759330232335,-597.148,0.00016999,2]
[388711751,1759330232345,-177.5542715,0.00016999,2]
[388711752,1759330232354,-9173.75844326,0.00017,2]
[388711753,1759330232371,-2956.8000035,0.00017,2]
[388711754,1759330232383,-1848.43061797,0.00017,2]
[388711756,1759330232396,-9045.57775935,0.00017,2]
[388711759,1759330232415,-415.65500003,0.00017,2]
[388711761,1759330232428,-982.43317074,0.00017,2]
[388711767,1759330232479,-9158.12936589,0.00017,2]
[388711769,1759330232494,-329.18394521,0.00017,2]
[388711771,1759330232505,-19974.44670674,0.00017,2]
[388711774,1759330232514,-93869.50206116,0.00017,2]
[388711777,1759330232526,-1026.2531425,0.00017,2]
[388711780,1759330232538,-7990.0,0.00017,2]
[388711783,1759330232551,-2150.57423866,0.00017,2]
[388711788,1759330232563,-5988.96283962,0.00017,2]
[388711790,1759330232575,-5041.76615854,0.00017,2]
[388711794,1759330232586,-2106.39218547,0.00017,2]
[388711805,1759330232637,150.0,0.0001567,2]
[388711852,1759330237924,-150.0,0.0001685,2]
[388711853,1759330237934,-10006.59605694,0.00017,2]
[388711854,1759330237945,-5506.37118413,0.00017,2]
[388711855,1759330237956,-3983.01168039,0.00017,2]
[388711856,1759330237968,-21100.000011,0.00017,2]
[388711857,1759330237980,-1671.17634056,0.00017,2]
[388711858,1759330238091,-375.41087674,0.00017,2]
[388711859,1759330238103,-397.86000031,0.00017,2]
[388711860,1759330238115,-21520.0,0.00017,2]
[388711861,1759330238126,-2738.57533887,0.00017,2]
[388712102,1759330240543,-192.13000202,0.000169,2]
[388712104,1759330240553,-627.73034555,0.00017,2]
[388712106,1759330240565,-305.0000025,0.00017,2]
[388712109,1759330240576,-2676.03049581,0.00017,2]
[388712111,1759330240588,-2096.45324002,0.00017,2]
[388712113,1759330240600,-3240.34999996,0.00017,2]
[388712115,1759330240610,-395.472,0.00017,2]
[388712118,1759330240622,-29049.15953753,0.00017,2]
[388712120,1759330240632,-2988.93535884,0.00017,2]
[388712122,1759330240643,-636.0425114,0.00017,2]
[388712126,1759330240671,-271.3215726,0.00017,2]
[388712364,1759330243073,-299.83761353,0.00017,2]
[388712372,1759330243127,-756.42548507,0.00017,2]
[388712375,1759330243144,-11734.9205143,0.00017,2]
[388712377,1759330243157,-413.79362022,0.00017,2]
[388712381,1759330243179,-587.24124148,0.00017,2]
[388712657,1759330245921,-285.6837201,0.00017,2]
[388712662,1759330245955,-870.94809213,0.00017,2]
[388712666,1759330245987,-1161.0,0.00017,2]
[388712668,1759330245999,-253.52,0.00017,2]
[388712691,1759330246209,-332.83701252,0.00017,2]
[388712694,1759330246220,-1083.42499999,0.00017,2]
[388712696,1759330246232,-4620.8,0.00017,2]
[388712699,1759330246248,-13197.40355747,0.00017,2]
[388712906,1759330299941,741.93,0.00030136,120]
[388712911,1759330443828,516.0,0.00016537,2]
[388712912,1759330446877,516.0,0.00016522,2]
[388712914,1759330457322,516.0,0.00016414,2]
[388712915,1759330463396,516.0,0.00016462,2]
[388712917,1759330479336,250.0,0.0001623,2]
[388712922,1759330513824,263.78,0.00016208,2]
[388712929,1759330567239,1850.8,0.00030137,120]
[388712934,1759330607906,666.0,0.00016198,3]
[388712953,1759330764110,150.0,0.000123,2]
[388712954,1759330764612,150.0,0.0001348,2]
[388712955,1759330764891,150.0,0.0001467,2]
[388712956,1759330765270,150.0,0.0001585,2]
[388712957,1759330767045,200.0,0.00016175,2]
[388712958,1759330780689,1000.0,0.00016438,2]
[388712966,1759330836676,178.17,0.0001612,2]
[388712967,1759330846414,711.02,0.00030136,120]
[388712972,1759330878166,172.88,0.00016594,2]
[388712984,1759331051923,194.05,0.00016119,2]
[388712988,1759331107012,150.0,0.00015288,2]
[388712989,1759331107107,150.0,0.00015288,2]
[388712990,1759331107249,150.0,0.00015288,2]
[388712991,1759331107524,150.0,0.00016137,2]
[388712992,1759331111644,150.0,0.00015288,2]
[388712993,1759331114128,290.33463636,0.00015288,2]
[388712994,1759331114294,194.52454312,0.00015288,2]
[388712995,1759331114338,150.0,0.00015288,2]
[388712996,1759331116772,150.0,0.00015288,2]
[388712997,1759331119419,150.0,0.00015288,2]
[388712998,1759331125651,153.2752195,0.00015288,2]
[388712999,1759331125711,150.0,0.00015288,2]
[388713000,1759331125924,150.0,0.00015288,2]
[388713001,1759331126026,150.0,0.00016137,2]
[388713002,1759331128074,158.06440789,0.00015288,2]
[388713003,1759331128407,150.0,0.00015288,2]
[388713004,1759331128531,164.48091079,0.00015288,2]
[388713007,1759331200521,271.64,0.00016098,2]
[388713008,1759331257153,194.72,0.000165,2]
[388713010,1759331290914,150.0,0.000113,2]
[388713011,1759331292990,150.0,0.0001248,2]
[388713012,1759331294719,150.0,0.0001367,2]
[388713013,1759331295764,150.0,0.0001485,2]
[388713014,1759331295948,150.0,0.0001603,2]
[388713039,1759331432380,-164.19,0.00016699,2]
[388713040,1759331432390,-489.52498886,0.000167,2]
[388713041,1759331432400,-300.0,0.00016701,2]
[388713042,1759331432410,-322.2414801,0.00016704,2]
[388713043,1759331432419,-516.0,0.0001671,2]
[388713044,1759331432429,-516.0,0.00016777,2]
[388713045,1759331432438,-40.5961865,0.00016829,2]
[388713046,1759331432451,-281.9940252,0.00016829,2]
[388713047,1759331432564,-193.4097883,0.00016829,2]
[388713048,1759331432574,-151.84773,0.0001683,2]
[388713049,1759331432584,-300.0,0.00016898,2]
[388713050,1759331432594,-180.0315451,0.00016899,2]
[388713051,1759331432606,-48.9684549,0.00016899,2]
[388713052,1759331432615,-719.08816639,0.00016899,2]
[388713053,1759331432627,-480.91183361,0.00016899,2]
[388713054,1759331432636,-185.57971248,0.000169,2]
[388713055,1759331432645,-1398.97380211,0.000169,2]
[388713056,1759331432665,-1678.35362891,0.000169,2]
[388713067,1759331438112,-1226.4308436,0.000169,2]
[388713068,1759331438127,-481.7177733,0.000169,2]
[388713069,1759331438197,-317.98127747,0.000169,2]
[388713070,1759331438209,-563.94852852,0.000169,2]
[388713071,1759331438221,-27657.78934609,0.000169,2]
[388713072,1759331438232,-14757.47685391,0.000169,2]
[388713073,1759331438272,-394.14575585,0.000169,2]
[388713074,1759331438486,-1071.73504248,0.000169,2]
[388713075,1759331438498,-4614.9662908,0.000169,2]
[388713076,1759331438510,-28054.32835696,0.000169,2]
[388713077,1759331438519,-515.02656604,0.000169,2]
[388713235,1759331440226,-324.45663396,0.000169,2]
[388713237,1759331440235,-1000.0,0.000169,2]
[388713239,1759331440245,-2921.13164438,0.000169,2]
[388713251,1759331440351,-2150.91205562,0.000169,2]
[388713253,1759331440361,-766.60892536,0.000169,2]
[388713255,1759331440372,-277.9807,0.000169,2]
[388713257,1759331440381,-315.720409,0.000169,2]
[388713259,1759331440392,-151.84774,0.0001695,2]
[388713261,1759331440401,-1624.1261141,0.00016969,2]
[388713263,1759331440415,-5769.96345807,0.00016969,2]
[388713267,1759331440434,-1488.59894263,0.00016969,2]
[388713269,1759331440444,-500.0,0.00016973,2]
[388713271,1759331440453,-500.0,0.00016973,2]
[388713273,1759331440463,-501.97785022,0.00016973,2]
[388713275,1759331440472,-500.0,0.00016973,2]
[388713277,1759331440482,-500.0,0.00016973,2]
[388713279,1759331440491,-500.0,0.00016973,2]
[388713281,1759331440501,-150.0,0.00016986,2]
[388713283,1759331440510,-150.0,0.00016986,2]
[388713285,1759331440520,-150.0,0.00016986,2]
[388713287,1759331440531,-150.0,0.00016986,2]
[388713289,1759331440540,-150.0,0.00016986,2]
[388713291,1759331440550,-500.0,0.0001699,2]
[388713293,1759331440559,-212.12703332,0.0001699,2]
[388713295,1759331440569,-516.0,0.00016993,2]
[388713297,1759331440579,-1000.0,0.00016999,2]
[388713299,1759331440591,-1160.79793685,0.00016999,5]
[388713301,1759331440601,-477.719,0.00016999,2]
[388713303,1759331440610,-2510.23,0.00016999,2]
[388713306,1759331440620,-415.93905194,0.00016999,2]
[388713308,1759331440630,-500.0,0.00016999,2]
[388713310,1759331440639,-500.0,0.00016999,2]
[388713312,1759331440649,-500.0,0.00016999,2]
[388713314,1759331440660,-500.0,0.00016999,2]
[388713316,1759331440669,-359.26177078,0.00016999,2]
[388713318,1759331440679,-300.68,0.00016999,2]
[388713320,1759331440690,-500.0,0.00016999,2]
[388713322,1759331440699,-500.0,0.00016999,2]
[388713324,1759331440709,-500.0,0.00016999,2]
[388713326,1759331440719,-500.0,0.00016999,2]
[388713328,1759331440728,-438.35406626,0.00016999,2]
[388713330,1759331440738,-500.0,0.00016999,2]
[388713333,1759331440749,-26942.20750635,0.00017,2]
[388713335,1759331440759,-407947.90818569,0.00017,2]
[388713337,1759331440770,-1160.79793685,0.00017,2]
[388713341,1759331440801,-125360.61264337,0.00017,2]
[388713343,1759331440812,-33417.18450231,0.00017,2]
[388713345,1759331440824,-406.78185936,0.00017,2]
[388713350,1759331440863,-2723.341422,0.00017,2]
[388713606,1759331443434,-642.30963821,0.00017,2]
[388713615,1759331443511,-8903.08971063,0.00017,2]
[388713637,1759331443717,-190193.05309651,0.00017,2]
[388713890,1759331446225,-592.1533885,0.00017,2]
[388713892,1759331446238,-2145.54313665,0.00017,2]
[388713894,1759331446250,-4331.28946588,0.00017,2]
[388713901,1759331446310,-1017.0,0.00017,2]
[388713904,1759331446322,-6506.72965781,0.00017,2]
[388713909,1759331446365,-224.52017702,0.00017,2]
[388713911,1759331446377,-429.87372272,0.00017,2]
[388713914,1759331446389,-47231.91909703,0.00017,2]
[388713916,1759331446400,-54186.9835284,0.00017,2]
[388713920,1759331446427,-40260.00008041,0.00017,2]
[388713925,1759331446468,-1858.09999844,0.00017,2]
[388713927,1759331446480,-5357.73379216,0.00017,2]
[388714041,1759331447757,168.0,0.00016538,2]
[388714065,1759331530300,366.14,0.00016226,2]
[388714079,1759331575105,150.0,0.00016122,2]
[388714080,1759331581503,164.51,0.00016122,2]
[388714088,1759331628221,610.0,0.00016149,2]
[388714093,1759331655258,526.9,0.00016069,2]
[388714099,1759331681916,563.37,0.00016099,2]
[388714102,1759331690821,10958.88,0.00016099,2]
[388714190,1759331758822,423.66,0.00016118,2]
[388714194,1759331784831,175.49,0.0001611,2]
[388714196,1759331816035,6683.84,0.00016079,2]
[388714198,1759331819627,150.0,0.000113,2]
[388714199,1759331820038,150.0,0.0001248,2]
[388714200,1759331820393,150.0,0.0001367,2]
[388714201,1759331820771,150.0,0.0001485,2]
[388714202,1759331821538,150.0,0.0001603,2]
[388714203,1759331823328,1619.49,0.00016069,2]
[388714204,1759331827903,1000.0,0.00016438,2]
[388714225,1759331983130,948.44,0.00016086,2]
[388714230,1759332030420,150.0,0.00016111,2]
[388714235,1759332061547,200.0,0.00016067,2]
[388714240,1759332091148,681.39,0.00030136,120]
[388714242,1759332117388,672.85,0.00030136,120]
[388714243,1759332117662,672.85,0.00030136,120]
[388714244,1759332117894,672.85,0.00030136,120]
[388714245,1759332118136,672.85,0.00030136,120]
[388714246,1759332118410,672.85,0.00030136,120]
[388714247,1759332118611,672.85,0.00030136,120]
[388714248,1759332118841,672.85,0.00030136,120]
[388714251,1759332119387,672.85,0.00030136,120]
[388714252,1759332119671,672.85,0.00030136,120]
[388714253,1759332119932,672.85,0.00030136,120]
[388714254,1759332120546,672.85,0.00030136,120]
[388714255,1759332120689,672.85,0.00030136,120]
[388714256,1759332120742,672.85,0.00030136,120]
[388714257,1759332121036,672.85,0.00030136,120]
[388714258,1759332121253,672.85,0.00030136,120]
[388714259,1759332121475,672.85,0.00030136,120]
[388714260,1759332121733,672.85,0.00030136,120]
[388714261,1759332122421,672.85,0.00030136,120]
[388714262,1759332122484,672.85,0.00030136,120]
[388714263,1759332122548,672.85,0.00030136,120]
[388714264,1759332122762,672.85,0.00030136,120]
[388714265,1759332123058,672.85,0.00030136,120]
[388714266,1759332123263,672.85,0.00030136,120]
[388714267,1759332123515,672.93273802,0.00030136,120]
[388714269,1759332145939,226.76,0.000165,2]
[388714271,1759332182960,200.55,0.0001607,2]
[388714277,1759332216274,33623.87,0.00016083,2]
[388714279,1759332233872,250.0,0.0001648,2]
[388714287,1759332315254,2206.85746691,0.000121,30]
[388714289,1759332327453,299.08,0.00016079,2]
[388714290,1759332330074,515.49,0.0001607,2]
[388714292,1759332341851,218.22719865,0.0002,30]
[388714294,1759332343717,150.0,0.000113,2]
[388714295,1759332344087,150.0,0.0001248,2]
[388714296,1759332344461,150.0,0.0001367,2]
[388714297,1759332344852,150.0,0.0001485,2]
[388714298,1759332345268,150.0,0.0001603,2]
[388714303,1759332367938,5090.82725158,0.0003,120]